bitfinex/quotes_BTCUSD_20250522
["timestamp","ask_amount","ask_price","bid_price","bid_amount"]
[1747882973799,0.20855714,110360.0,110350.0,0.35222744]
[1747882974009,0.1994963,110360.0,110350.0,0.35222744]
[1747882974228,0.19043522,110360.0,110350.0,0.13664085]
[1747882974470,0.19043522,110360.0,110350.0,0.091]
[1747882974730,0.19043522,110360.0,110350.0,0.001]
[1747882976909,0.20613522,110360.0,110350.0,0.001]
[1747882977345,0.19043522,110360.0,110350.0,0.001]
[1747882978912,0.18998209,110360.0,110350.0,0.001]
[1747882981540,0.22038209,110360.0,110350.0,0.001]
[1747882983139,0.31441566,110360.0,110350.0,0.001]
[1747882986385,0.28401566,110360.0,110350.0,0.001]
[1747882988690,0.30011566,110360.0,110350.0,0.001]
[1747882989338,0.39414923,110360.0,110350.0,0.001]
[1747882989553,0.31591566,110360.0,110350.0,0.001]
[1747882990208,0.29981566,110360.0,110350.0,0.001]
[1747882991476,0.31561566,110360.0,110350.0,0.001]
[1747882991913,0.21750851,110340.0,110330.0,0.21658659]
[1747882992126,0.19937877,110350.0,110340.0,0.00906281]
[1747882992329,0.226564,110350.0,110340.0,0.22564948]
[1747882992574,0.226564,110350.0,110340.0,0.21658659]
[1747882992794,0.21750267,110350.0,110340.0,0.21658659]
[1747882993280,0.21750267,110350.0,110330.0,0.30282301]
[1747882993281,0.00906223,110340.0,110330.0,0.31188615]
[1747882993737,0.01006223,110340.0,110330.0,0.30649775]
[1747882993958,0.01006223,110340.0,110330.0,0.3210386]
[1747882994155,0.00906223,110340.0,110330.0,0.3170386]
[1747882994379,0.21750777,110340.0,110330.0,0.10857442]
[1747882994587,0.20844554,110340.0,110330.0,0.32516101]
[1747882994793,0.21750835,110340.0,110330.0,0.26392744]
[1747882994997,0.21750835,110340.0,110330.0,0.06546803]
[1747882995222,0.21750835,110340.0,110330.0,0.27299115]
[1747882995424,0.21750835,110340.0,110330.0,0.29111817]
[1747882995634,0.01812455,110340.0,110330.0,0.49051904]
[1747882995839,0.02718711,110340.0,110330.0,0.4834559]
[1747882996101,0.00906223,110340.0,110330.0,0.5865522]
[1747882996247,0.01812463,110340.0,110330.0,0.5865522]
[1747882996450,0.01912463,110340.0,110330.0,0.5905522]
[1747882997099,0.01912463,110340.0,110330.0,0.59055228]
[1747882997312,0.01912463,110340.0,110330.0,0.37396569]
[1747882997516,0.01912463,110340.0,110330.0,0.59055228]
[1747882997695,0.02818711,110340.0,110330.0,0.59055228]
[1747882998211,0.01912463,110340.0,110330.0,0.59055228]
[1747882998591,0.02818711,110340.0,110330.0,0.59055228]
[1747882998802,0.02818711,110340.0,110330.0,0.57242576]
[1747882999590,0.20944504,110340.0,110330.0,0.57242576]
[1747882999787,0.20944504,110340.0,110330.0,0.56336238]
[1747882999991,0.21850769,110340.0,110330.0,0.56336238]
[1747883000359,0.20944504,110340.0,110330.0,0.56336238]
[1747883000854,0.20944504,110340.0,110330.0,0.57242576]
[1747883001109,0.2185076,110340.0,110330.0,0.34677579]
[1747883001351,0.2185076,110340.0,110330.0,0.56336238]
[1747883001591,0.2185076,110340.0,110330.0,0.36396101]
[1747883001592,0.22757033,110340.0,110330.0,0.36396101]
[1747883001792,0.21850851,110340.0,110330.0,0.36396101]
[1747883002004,0.21850851,110340.0,110330.0,0.33116101]
[1747883002211,0.20944603,110340.0,110330.0,0.33116101]
[1747883002388,0.20944603,110340.0,110330.0,0.34555452]
[1747883002629,0.20944603,110340.0,110330.0,0.35461823]
[1747883002839,0.20944554,110340.0,110330.0,0.39418178]
[1747883003012,0.19132025,110340.0,110330.0,0.57545613]
[1747883003213,0.20038281,110340.0,110330.0,0.5845196]
[1747883003425,0.20038281,110340.0,110330.0,0.59358298]
[1747883003636,0.20038281,110340.0,110330.0,0.5845196]
[1747883003842,0.001,110340.0,110330.0,0.81923271]
[1747883004267,0.001,110340.0,110330.0,1.15923271]
[1747883004846,0.001,110340.0,110330.0,1.1448392]
[1747883005048,0.001,110340.0,110330.0,1.4166392]
[1747883007912,0.001,110340.0,110330.0,0.92825261]
[1747883008150,0.01006215,110340.0,110330.0,1.20005261]
[1747883008797,0.001,110340.0,110330.0,1.20005261]
[1747883009643,0.001,110340.0,110330.0,1.60825261]
[1747883010459,0.001,110340.0,110330.0,1.33645261]
[1747883010659,0.001,110340.0,110330.0,1.60825261]
[1747883011106,0.001,110340.0,110330.0,1.63358637]
[1747883011507,0.001,110340.0,110330.0,1.60825261]
[1747883011720,0.001,110340.0,110330.0,1.30595261]
[1747883011897,0.001,110340.0,110330.0,1.33865261]
[1747883014091,0.00906002,110370.0,110360.0,0.03266277]
[1747883014308,0.43469881,110380.0,110360.0,0.44229623]
[1747883014517,0.42755767,110380.0,110370.0,0.43951657]
[1747883014731,0.40299823,110380.0,110370.0,0.4395164]
[1747883014946,0.10739988,110390.0,110370.0,1.0901359]
[1747883015154,0.03431683,110390.0,110380.0,0.43401594]
[1747883015366,0.01811634,110390.0,110380.0,0.44855679]
[1747883015569,0.03623334,110390.0,110380.0,0.44855679]
[1747883016404,0.86959467,110400.0,110390.0,0.22289205]
[1747883016405,0.41658,110400.0,110390.0,0.22289205]
[1747883016623,0.38488,110400.0,110390.0,0.53351221]
[1747883016830,0.39393723,110400.0,110390.0,0.53351221]
[1747883017033,0.82547517,110410.0,110400.0,0.20833258]
[1747883017243,0.71313539,110410.0,110400.0,0.44851758]
[1747883017449,0.4413349,110410.0,110400.0,0.44851758]
[1747883017657,0.45039164,110410.0,110400.0,0.44851758]
[1747883017861,0.45944862,110410.0,110400.0,0.44851758]
[1747883018274,0.46865502,110410.0,110400.0,0.44851758]
[1747883018640,0.45959861,110410.0,110400.0,0.43946019]
[1747883018839,0.45959861,110410.0,110400.0,0.44851775]
[1747883019459,0.42873677,110410.0,110400.0,0.23193116]
[1747883019668,0.42973677,110410.0,110400.0,0.45757522]
[1747883019881,0.40156575,110410.0,110400.0,0.45757464]
[1747883020084,0.01826232,110410.0,110400.0,0.7681948]
[1747883020510,0.01826232,110410.0,110400.0,0.7691948]
[1747883021151,0.02731906,110410.0,110400.0,0.7691948]
[1747883021355,0.02731906,110410.0,110400.0,0.55260821]
[1747883021751,0.03637596,110410.0,110400.0,0.55260821]
[1747883022855,0.04543294,110410.0,110400.0,0.55260821]
[1747883023351,0.22657595,110410.0,110400.0,0.42234483]
[1747883023558,0.23301954,110410.0,110400.0,0.43140271]
[1747883023757,0.21490623,110410.0,110400.0,0.44046051]
[1747883024139,0.00920599,110410.0,110400.0,0.44046051]
[1747883024342,0.00014934,110410.0,110400.0,0.7691957]
[1747883024544,0.00920575,110410.0,110400.0,0.79797768]
[1747883024911,0.00014934,110410.0,110400.0,1.15397768]
[1747883026370,0.0271657,110430.0,110420.0,0.43942203]
[1747883026582,0.02716521,110430.0,110420.0,0.43942203]
[1747883026797,0.03622055,110430.0,110420.0,0.43942203]
[1747883027024,0.03622113,110430.0,110420.0,0.4394222]
[1747883027212,0.25043133,110430.0,110420.0,0.4394222]
[1747883027455,0.24137623,110430.0,110420.0,0.4394222]
[1747883027632,0.1811102,110430.0,110420.0,0.4394222]
[1747883027841,0.19216538,110430.0,110420.0,0.4394222]
[1747883028495,0.20122072,110430.0,110420.0,0.42131028]
[1747883028729,0.20122072,110430.0,110420.0,0.43942236]
[1747883028935,0.20122072,110430.0,110420.0,0.44847828]
[1747883028936,0.20322072,110430.0,110420.0,0.44847828]
[1747883029940,0.20322072,110430.0,110420.0,0.45753411]
[1747883030382,0.02211011,110430.0,110420.0,0.45753362]
[1747883030554,0.03116529,110430.0,110420.0,0.86573362]
[1747883030766,0.03116521,110430.0,110420.0,0.86573362]
[1747883031196,0.03116521,110430.0,110420.0,0.88113362]
[1747883031404,0.04927597,110430.0,110420.0,0.86573362]
[1747883032171,0.23038617,110430.0,110420.0,0.82951037]
[1747883032375,0.22133124,110430.0,110420.0,0.84762261]
[1747883032554,0.23733124,110430.0,110420.0,0.84762261]
[1747883033060,0.23733124,110430.0,110420.0,0.85667853]
[1747883034022,0.21922096,110430.0,110420.0,0.63932744]
[1747883034172,0.23452096,110430.0,110420.0,0.63932744]
[1747883034385,0.23452096,110430.0,110420.0,0.65744001]
[1747883034611,0.02210995,110430.0,110420.0,0.86573444]
[1747883034795,0.02210995,110430.0,110420.0,1.1390546]
[1747883034796,0.004,110430.0,110420.0,1.1390546]
[1747883034998,0.004,110430.0,110420.0,1.5472546]
[1747883035199,0.19923064,110470.0,110450.0,0.47025651]
[1747883035423,0.21748386,110470.0,110460.0,0.23112744]
[1747883035578,0.20843221,110470.0,110460.0,0.23112744]
[1747883035792,0.23018031,110470.0,110460.0,0.21658659]
[1747883036004,0.23018031,110470.0,110460.0,0.03106202]
[1747883036208,0.19938031,110470.0,110460.0,0.03106202]
[1747883036419,0.48742031,110470.0,110460.0,0.24764861]
[1747883036633,0.47502031,110470.0,110460.0,0.26218946]
[1747883036834,0.4750199,110470.0,110460.0,0.26218946]
[1747883037048,0.2003799,110470.0,110460.0,0.46135615]
[1747883037256,0.2003799,110470.0,110460.0,0.45230335]
[1747883037480,0.00114934,110470.0,110460.0,1.06938406]
[1747883037694,0.00214934,110470.0,110460.0,1.17871763]
[1747883037909,0.00214934,110470.0,110460.0,1.20045878]
[1747883038128,0.01120083,110470.0,110460.0,1.20045878]
[1747883038339,0.00214934,110470.0,110460.0,1.22136592]
[1747883039839,0.19224561,110470.0,110460.0,1.46580793]
[1747883040040,0.21034932,110470.0,110460.0,1.43120614]
[1747883040292,0.2103499,110470.0,110460.0,0.49647257]
[1747883040466,0.2103499,110470.0,110460.0,0.91222585]
[1747883040676,0.2103499,110470.0,110460.0,0.69563926]
[1747883040677,0.20934981,110470.0,110460.0,0.69563926]
[1747883040895,0.20934981,110470.0,110460.0,0.90317313]
[1747883041142,0.20934981,110470.0,110460.0,0.92327873]
[1747883041271,0.20934981,110470.0,110460.0,0.71505916]
[1747883041485,0.21840204,110470.0,110460.0,0.42254493]
[1747883041693,0.21740204,110470.0,110460.0,0.63913152]
[1747883041894,0.21740204,110470.0,110460.0,0.64113152]
[1747883042480,0.21740204,110470.0,110460.0,0.65018432]
[1747883042676,0.21740204,110470.0,110460.0,0.64113152]
[1747883042884,0.23320204,110470.0,110460.0,0.6411316]
[1747883043083,0.23320204,110470.0,110460.0,0.65923728]
[1747883043293,0.23029833,110470.0,110460.0,0.02083613]
[1747883044115,0.23029833,110470.0,110460.0,0.23742272]
[1747883044978,0.19929833,110470.0,110460.0,0.23742272]
[1747883045204,0.19929833,110470.0,110460.0,0.25552865]
[1747883045640,0.19929833,110470.0,110460.0,0.25552873]
[1747883045869,0.19929833,110470.0,110460.0,0.31095816]
[1747883046148,0.19929833,110470.0,110460.0,0.28379927]
[1747883047207,0.21449833,110470.0,110460.0,0.28379927]
[1747883047374,0.22949833,110470.0,110460.0,0.23742272]
[1747883047946,0.22949833,110470.0,110460.0,0.02083613]
[1747883048145,0.22949833,110470.0,110460.0,0.23742272]
[1747883048885,0.00014934,110470.0,110460.0,0.39041444]
[1747883049096,0.00014934,110470.0,110460.0,1.14260289]
[1747883049304,0.00014934,110470.0,110460.0,1.74404884]
[1747883049512,0.59277351,110510.0,110500.0,0.18099547]
[1747883049513,0.01809667,110510.0,110500.0,0.18099547]
[1747883049733,0.19895202,110510.0,110500.0,0.21658659]
[1747883049953,0.20800081,110510.0,110500.0,0.01714635]
[1747883050155,0.20800081,110510.0,110500.0,0.06097987]
[1747883050367,0.20800081,110510.0,110500.0,0.2694698]
[1747883050572,0.20862287,110510.0,110500.0,0.2785194]
[1747883050721,0.21162287,110510.0,110500.0,0.26042011]
[1747883050918,0.21162287,110510.0,110500.0,0.26946988]
[1747883051179,0.21162287,110510.0,110500.0,0.26042011]
[1747883052491,0.21662287,110510.0,110500.0,0.26142011]
[1747883053645,0.20757433,110510.0,110500.0,0.26142011]
[1747883054275,0.0084975,110510.0,110500.0,1.43900492]
[1747883054679,0.67234655,110550.0,110540.0,0.20806848]
[1747883054680,0.3918212,110550.0,110540.0,0.20806848]
[1747883054883,0.39197044,110550.0,110540.0,0.55465262]
[1747883055086,0.01345044,110550.0,110540.0,0.55465262]
[1747883055288,0.00014924,110550.0,110540.0,0.55465262]
[1747883055979,0.01823961,110550.0,110540.0,0.55465262]
[1747883056394,0.00014924,110550.0,110540.0,0.55465262]
[1747883056594,0.00919426,110550.0,110540.0,0.55465262]
[1747883057006,0.02123944,110550.0,110540.0,0.55465262]
[1747883057204,0.03028487,110550.0,110540.0,0.55465262]
[1747883057466,0.02123944,110550.0,110540.0,0.55465262]
[1747883057872,0.03933038,110550.0,110540.0,0.5636987]
[1747883058241,0.03028479,110550.0,110540.0,0.5636987]
[1747883058438,0.01219426,110550.0,110540.0,0.5636987]
[1747883058649,0.01219434,110550.0,110540.0,0.5636987]
[1747883058888,0.03028496,110550.0,110540.0,0.56369878]
[1747883059019,0.22024408,110550.0,110540.0,0.23112744]
[1747883059219,0.19902239,110540.0,110530.0,0.57112744]
[1747883059423,0.01809422,110530.0,110520.0,0.75564492]
[1747883059649,0.01809422,110530.0,110520.0,0.65062016]
[1747883059650,0.20808738,110530.0,110520.0,0.65062016]
[1747883059913,0.20808738,110530.0,110520.0,0.54810654]
[1747883060128,0.20808738,110530.0,110520.0,0.55715426]
[1747883060410,0.00014924,110550.0,110540.0,0.19547083]
[1747883060615,0.00014924,110550.0,110540.0,0.53322949]
[1747883060819,0.01823928,110550.0,110540.0,0.53322949]
[1747883061323,0.00014924,110550.0,110540.0,0.53322949]
[1747883061753,0.00014924,110550.0,110540.0,0.87322949]
[1747883062394,0.01823936,110550.0,110540.0,0.87322949]
[1747883062695,0.02728471,110550.0,110540.0,0.87322949]
[1747883062945,0.03633022,110550.0,110540.0,0.86418357]
[1747883063168,0.00919418,110550.0,110540.0,0.87322949]
[1747883063390,0.00014924,110550.0,110540.0,0.88902949]
[1747883063595,0.00014924,110550.0,110540.0,0.90562949]
[1747883064465,0.00014924,110550.0,110540.0,0.87422949]
[1747883065641,0.00014924,110550.0,110540.0,0.90562949]
[1747883065881,0.00904101,110600.0,110580.0,0.00904249]
[1747883066113,0.00919001,110600.0,110590.0,0.43005888]
[1747883066380,0.02662771,110600.0,110590.0,0.53313477]
[1747883066599,0.03566881,110600.0,110590.0,0.59839142]
[1747883066824,0.04471056,110600.0,110590.0,0.53313551]
[1747883067038,0.00854585,110600.0,110590.0,0.54217734]
[1747883067251,0.03062763,110600.0,110590.0,0.54217734]
[1747883067468,0.02762763,110600.0,110590.0,0.54217734]
[1747883067926,0.04166864,110600.0,110590.0,0.54217734]
[1747883068401,0.05070974,110600.0,110590.0,0.54217734]
[1747883068590,0.04166864,110600.0,110590.0,0.54217734]
[1747883068799,0.03162763,110600.0,110590.0,0.54217734]
[1747883069054,0.03162771,110600.0,110590.0,0.54217734]
[1747883069269,0.01919001,110600.0,110590.0,0.60743399]
[1747883069480,0.00514916,110600.0,110590.0,0.54217734]
[1747883069693,0.00014916,110600.0,110590.0,0.54217734]
[1747883070112,0.00919001,110600.0,110590.0,0.54317734]
[1747883070880,0.00014916,110600.0,110590.0,0.54317734]
[1747883071297,0.00919001,110600.0,110590.0,0.54317734]
[1747883071522,0.01823102,110600.0,110590.0,0.54317734]
[1747883071829,0.19002183,110600.0,110590.0,0.4220177]
[1747883072026,0.19906358,110600.0,110590.0,0.01908456]
[1747883072230,0.19906358,110600.0,110590.0,0.21447358]
[1747883072357,0.1900224,110600.0,110590.0,0.20543142]
[1747883072567,0.1900224,110600.0,110590.0,0.22351582]
[1747883073602,0.00014916,110600.0,110590.0,0.23255765]
[1747883073811,0.00919001,110600.0,110590.0,0.32659122]
[1747883074043,0.01823135,110600.0,110590.0,0.54317781]
[1747883074252,0.02727212,110600.0,110590.0,0.54317781]
[1747883075103,0.03631346,110600.0,110590.0,0.54317781]
[1747883075740,0.03631338,110600.0,110590.0,0.54317781]
[1747883075962,0.0453548,110600.0,110590.0,0.54317781]
[1747883076897,0.00919001,110600.0,110590.0,0.54317781]
[1747883077109,0.00919009,110600.0,110590.0,0.54317781]
[1747883077319,0.01823102,110600.0,110590.0,0.54317781]
[1747883077527,0.0272722,110600.0,110590.0,0.54317781]
[1747883077728,0.02727228,110600.0,110590.0,0.54317781]
[1747883077934,0.0363137,110600.0,110590.0,0.54317781]
[1747883078352,0.02727228,110600.0,110590.0,0.54317781]
[1747883078672,0.0363137,110600.0,110590.0,0.54317781]
[1747883078876,0.02727228,110600.0,110590.0,0.54317781]
[1747883079112,0.00014916,110600.0,110590.0,1.15441781]
[1747883079327,0.00014916,110600.0,110590.0,1.18591781]
[1747883079974,0.00014916,110600.0,110590.0,1.4025044]
[1747883080663,0.00014916,110600.0,110590.0,2.3761384]
[1747883081113,0.00014916,110600.0,110590.0,2.39787955]
[1747883081342,0.00903521,110670.0,110660.0,0.20430632]
[1747883081558,0.00903521,110670.0,110660.0,0.47023984]
[1747883081559,0.01807067,110670.0,110660.0,0.47023984]
[1747883081787,0.01856798,110670.0,110660.0,0.50488309]
[1747883082222,0.01791924,110670.0,110660.0,0.50488309]
[1747883082451,0.03599008,110670.0,110660.0,0.50488309]
[1747883082677,0.00888403,110670.0,110660.0,0.50488309]
[1747883082889,0.00888403,110670.0,110660.0,0.62520781]
[1747883083536,0.20767263,110670.0,110660.0,0.05485118]
[1747883083743,0.20767263,110670.0,110660.0,0.04031033]
[1747883083983,0.22973717,110670.0,110660.0,0.04031033]
[1747883084248,0.23073717,110670.0,110660.0,0.04031033]
[1747883085091,0.23073717,110670.0,110650.0,0.45598963]
[1747883085092,0.01807304,110660.0,110650.0,0.43438284]
[1747883085315,0.01807272,110660.0,110650.0,0.46149404]
[1747883085529,0.02645944,110660.0,110650.0,0.46149404]
[1747883085738,0.03549596,110660.0,110650.0,0.46149404]
[1747883085948,0.02645903,110660.0,110650.0,0.46149404]
[1747883086163,0.00838672,110660.0,110650.0,0.55552761]
[1747883086371,0.00838672,110660.0,110650.0,0.92281876]
[1747883086589,0.00838672,110660.0,110650.0,1.2195859]
[1747883087010,0.02860328,110670.0,110660.0,0.20784284]
[1747883087215,0.01856782,110670.0,110660.0,0.518463]
[1747883087417,0.01856782,110670.0,110660.0,0.54475415]
[1747883087630,0.02694247,110670.0,110660.0,0.54475415]
[1747883088076,0.02694255,110670.0,110660.0,0.54475415]
[1747883088259,0.01790717,110670.0,110660.0,0.57036129]
[1747883088472,0.00887196,110670.0,110660.0,0.57036129]
[1747883088676,0.00987196,110670.0,110660.0,0.57036129]
[1747883089115,0.01890709,110670.0,110660.0,0.57036129]
[1747883089362,0.00987196,110670.0,110660.0,0.57036129]
[1747883089602,0.1905894,110670.0,110660.0,0.05189829]
[1747883089819,0.1905894,110670.0,110650.0,0.01349479]
[1747883089820,0.22990657,110660.0,110650.0,0.01349479]
[1747883090028,0.23828122,110660.0,110650.0,0.01349479]
[1747883090246,0.02711112,110650.0,110640.0,0.1988418]
[1747883090454,0.03614838,110650.0,110640.0,0.51850003]
[1747883090654,0.20786172,110650.0,110640.0,0.53191837]
[1747883090880,0.18978745,110650.0,110640.0,0.01341834]
[1747883091302,0.20789944,110630.0,110620.0,0.22729362]
[1747883091507,0.0271165,110630.0,110620.0,0.52020581]
[1747883091730,0.0271165,110630.0,110620.0,0.86924519]
[1747883091966,0.20789928,110630.0,110620.0,0.84949878]
[1747883092171,0.02711585,110630.0,110620.0,0.8675777]
[1747883092383,0.20789969,110630.0,110620.0,0.65062016]
[1747883092596,0.20789969,110630.0,110610.0,0.01070703]
[1747883092597,0.20483892,110620.0,110610.0,0.01070703]
[1747883092874,0.59429892,110620.0,110610.0,0.1047406]
[1747883093052,0.59429892,110620.0,110610.0,0.06597312]
[1747883093357,0.59429892,110620.0,110610.0,0.01070703]
[1747883093777,0.56359892,110620.0,110610.0,0.22729362]
[1747883093987,0.18081547,110610.0,110600.0,0.43787833]
[1747883094206,0.21697707,110610.0,110600.0,0.54095316]
[1747883094619,0.21697707,110610.0,110600.0,0.56453519]
[1747883094914,0.21697707,110610.0,110600.0,0.55549401]
[1747883095360,0.21697707,110610.0,110600.0,0.33086616]
[1747883095566,0.21697707,110610.0,110600.0,0.55649401]
[1747883095793,0.21697707,110610.0,110600.0,0.33086616]
[1747883096003,0.21697707,110610.0,110600.0,0.32182482]
[1747883096180,0.20793704,110610.0,110600.0,0.15003597]
[1747883096491,0.20793704,110610.0,110600.0,0.32182637]
[1747883096696,0.20793704,110610.0,110600.0,0.33086771]
[1747883096977,0.51085704,110610.0,110600.0,0.09503357]
[1747883097162,0.50181676,110610.0,110600.0,0.001]
[1747883097574,0.50173156,110610.0,110600.0,0.001]
[1747883098094,0.83477575,110610.0,110600.0,0.21671591]
[1747883098302,0.86189707,110610.0,110600.0,0.20541426]
[1747883098511,0.86193683,110610.0,110600.0,0.23253812]
[1747883098712,0.86193683,110610.0,110600.0,0.22349702]
[1747883098918,0.86121393,110610.0,110600.0,0.2325382]
[1747883099121,0.66231741,110610.0,110600.0,0.23253803]
[1747883099297,0.68039838,110610.0,110600.0,0.2325382]
[1747883099539,0.86121385,110610.0,110600.0,0.22349702]
[1747883099724,0.86121385,110610.0,110600.0,0.21699735]
[1747883099937,0.86121385,110610.0,110600.0,0.20795633]
[1747883100128,0.87025462,110610.0,110600.0,0.21699767]
[1747883100331,0.85217382,110610.0,110600.0,0.18987341]
[1747883100496,0.85217382,110610.0,110600.0,0.20795609]
[1747883100696,0.85217373,110610.0,110600.0,0.31103076]
[1747883100896,0.85217373,110610.0,110600.0,0.31103084]
[1747883101375,0.85217373,110610.0,110600.0,0.32007194]
[1747883101583,0.59009442,110610.0,110600.0,0.32557169]
[1747883102146,0.58105373,110610.0,110600.0,0.33461279]
[1747883102358,0.85775763,110620.0,110600.0,0.60776209]
[1747883102512,0.01808032,110610.0,110600.0,0.60776209]
[1747883102921,0.02712068,110610.0,110600.0,0.60776209]
[1747883103345,0.02712068,110610.0,110600.0,0.60776225]
[1747883103911,0.01808032,110610.0,110600.0,0.31652953]
[1747883104115,0.02712068,110610.0,110600.0,0.31652953]
[1747883108717,0.0361612,110610.0,110600.0,0.31652953]
[1747883108929,0.21307979,110630.0,110620.0,0.00903979]
[1747883109146,0.55995876,110630.0,110620.0,0.18983908]
[1747883109375,0.84015789,110630.0,110620.0,0.00903995]
[1747883110137,0.84215789,110630.0,110620.0,0.00903995]
[1747883110347,0.84015789,110630.0,110620.0,0.18983908]
[1747883110551,0.84015789,110630.0,110620.0,0.2287126]
[1747883110760,0.84015789,110630.0,110620.0,0.23775247]
[1747883111012,0.01857438,110630.0,110620.0,0.7816456]
[1747883111226,0.0185743,110630.0,110620.0,0.7816456]
[1747883111427,0.02157421,110630.0,110620.0,0.7816456]
[1747883111629,0.03061302,110630.0,110620.0,0.7816456]
[1747883111858,0.02861302,110630.0,110620.0,0.7816456]
[1747883112461,0.03765199,110630.0,110620.0,0.7816456]
[1747883112659,0.03665199,110630.0,110620.0,0.7816456]
[1747883112860,0.21743477,110630.0,110620.0,0.7337327]
[1747883113133,0.20839621,110630.0,110620.0,0.74277224]
[1747883113961,0.03665248,110630.0,110620.0,0.74277175]
[1747883114951,0.02761343,110630.0,110620.0,0.74277126]
[1747883115101,0.01857446,110630.0,110620.0,0.74277126]
[1747883115312,0.00049701,110630.0,110620.0,1.40660398]
[1747883116311,0.00049701,110630.0,110620.0,1.67772398]
[1747883116519,0.00049701,110630.0,110620.0,2.19416398]
[1747883117347,0.00049701,110630.0,110620.0,2.87856398]
[1747883117560,0.00049701,110630.0,110620.0,2.90485513]
[1747883117769,0.00049701,110630.0,110620.0,2.34604005]
[1747883117990,0.36964,110670.0,110660.0,0.22238369]
[1747883118227,0.38785953,110670.0,110660.0,0.53190694]
[1747883118668,0.39689507,110670.0,110660.0,0.54571985]
[1747883118882,0.39689507,110670.0,110660.0,0.572011]
[1747883119093,0.38785953,110670.0,110660.0,0.572011]
[1747883119307,0.39989499,110670.0,110660.0,0.572011]
[1747883119507,0.39285953,110670.0,110660.0,0.572011]
[1747883119731,0.39889499,110670.0,110660.0,0.572011]
[1747883119940,0.39689491,110670.0,110660.0,0.572011]
[1747883120144,0.40593045,110670.0,110660.0,0.54571985]
[1747883120351,0.39689491,110670.0,110660.0,0.54571985]
[1747883120553,0.40593045,110670.0,110660.0,0.54571985]
[1747883120774,0.40593045,110670.0,110660.0,0.12238733]
[1747883120775,0.60861357,110670.0,110660.0,0.12238733]
[1747883120988,0.60861357,110670.0,110660.0,0.33023058]
[1747883121236,0.00903685,110650.0,110640.0,0.58212599]
[1747883121469,0.00903685,110650.0,110640.0,0.89164924]
[1747883121683,0.0011491,110670.0,110660.0,0.54784284]
[1747883121921,0.0011491,110670.0,110660.0,1.60048962]
[1747883122160,0.0011491,110670.0,110660.0,1.62678077]
[1747883122161,0.0001491,110670.0,110660.0,1.62678077]
[1747883122417,0.0001491,110670.0,110660.0,2.02194791]
[1747883122752,0.0001491,110670.0,110660.0,2.03194791]
[1747883122954,0.0001491,110670.0,110660.0,1.78085109]
[1747883123154,0.0001491,110670.0,110660.0,1.08211994]
[1747883123345,0.0001491,110670.0,110660.0,1.14298694]
[1747883123546,0.0001491,110670.0,110660.0,1.14498694]
[1747883123745,0.0673906,110670.0,110660.0,0.09603357]
[1747883123994,0.2300377,110670.0,110660.0,0.28580402]
[1747883124157,0.5011177,110670.0,110660.0,0.09603357]
[1747883124378,0.49208224,110670.0,110660.0,0.11457442]
[1747883124606,0.32040026,110670.0,110660.0,0.32241759]
[1747883124811,0.33847192,110670.0,110660.0,0.32945378]
[1747883125023,0.51918936,110670.0,110660.0,0.31641767]
[1747883125229,0.5101539,110670.0,110660.0,0.31841767]
[1747883125423,0.5011182,110670.0,110660.0,0.31841775]
[1747883125651,0.5011182,110670.0,110660.0,0.32041775]
[1747883125992,0.32040043,110670.0,110660.0,0.32945411]
[1747883126214,0.32040043,110670.0,110660.0,0.33849039]
[1747883126354,0.50111787,110670.0,110660.0,0.32945411]
[1747883126565,0.50111787,110670.0,110660.0,0.33849039]
[1747883126566,0.51015374,110670.0,110660.0,0.33849039]
[1747883126971,0.51015374,110670.0,110660.0,0.31138131]
[1747883127231,0.51015374,110670.0,110660.0,0.1216111]
[1747883127520,0.51015374,110670.0,110660.0,0.13968406]
[1747883127849,0.51015374,110670.0,110660.0,0.32041783]
[1747883128060,0.51015374,110670.0,110660.0,0.31841783]
[1747883128492,0.0001491,110670.0,110660.0,0.89297998]
[1747883128720,0.0001491,110670.0,110660.0,1.19391998]
[1747883128928,0.0001491,110670.0,110660.0,1.67508966]
[1747883129366,0.0001491,110670.0,110660.0,0.9794303]
[1747883129585,0.0001491,110670.0,110660.0,1.41040966]
[1747883130076,0.0001491,110670.0,110660.0,2.05039733]
[1747883130292,0.0001491,110670.0,110660.0,2.07600447]
[1747883130515,0.0001491,110670.0,110660.0,1.73772166]
[1747883130933,0.0001491,110670.0,110660.0,1.77638861]
[1747883131158,0.0001491,110670.0,110660.0,1.17641826]
[1747883131595,0.0001491,110670.0,110660.0,1.17741826]
[1747883131808,0.0001491,110670.0,110660.0,0.83741826]
[1747883132010,0.0001491,110670.0,110660.0,0.83941826]
[1747883132246,0.0001491,110670.0,110660.0,1.17941826]
[1747883132477,0.0001491,110670.0,110660.0,0.83941826]
[1747883132871,0.0001491,110670.0,110660.0,1.16501998]
[1747883133049,0.0001491,110670.0,110660.0,0.87943913]
[1747883133420,0.0001491,110670.0,110660.0,0.89397998]
[1747883133619,0.0091844,110670.0,110660.0,0.89397998]
[1747883134049,0.00918431,110670.0,110660.0,0.89397998]
[1747883134275,0.0001491,110670.0,110660.0,0.89397998]
[1747883134688,0.0091844,110670.0,110660.0,0.89397998]
[1747883135150,0.0091844,110670.0,110660.0,0.88997998]
[1747883138324,0.00918423,110670.0,110660.0,0.88997998]
[1747883139540,0.0001491,110670.0,110660.0,0.88997998]
[1747883142240,0.0001491,110670.0,110660.0,1.30883171]
[1747883142819,0.00918423,110670.0,110660.0,1.30883171]
[1747883143576,0.0001491,110670.0,110660.0,1.30883171]
[1747883144533,0.00918423,110670.0,110660.0,1.30883171]
[1747883144985,0.0001491,110670.0,110660.0,1.30883171]
[1747883145428,0.00918423,110670.0,110660.0,1.30883171]
[1747883145639,0.02725499,110670.0,110660.0,1.30883171]
[1747883146158,0.03629053,110670.0,110660.0,1.30883171]
[1747883146354,0.02725499,110670.0,110660.0,1.30883171]
[1747883146598,0.24047243,110670.0,110660.0,0.01065173]
[1747883146805,0.2314377,110670.0,110660.0,0.01065173]
[1747883147024,0.8711977,110670.0,110660.0,0.01065173]
[1747883147233,0.8711977,110670.0,110660.0,0.22614141]
[1747883147663,0.96523127,110670.0,110660.0,0.01065173]
[1747883147868,0.22227029,110660.0,110650.0,0.01065173]
[1747883148071,0.31630386,110660.0,110650.0,0.01065173]
[1747883148806,0.22227029,110660.0,110650.0,0.01065173]
[1747883149021,0.86203029,110660.0,110650.0,0.01065173]
[1747883149214,0.87047829,110660.0,110650.0,0.01065173]
[1747883149421,0.87147829,110660.0,110650.0,0.01065173]
[1747883149617,0.1988425,110640.0,110630.0,0.21548968]
[1747883149816,0.2294425,110640.0,110630.0,0.2423499]
[1747883150323,0.18078278,110630.0,110620.0,0.59406139]
[1747883150707,0.19885974,110630.0,110620.0,0.80197972]
[1747883150909,0.21693744,110630.0,110620.0,0.60310134]
[1747883151111,0.22597657,110630.0,110620.0,0.59406139]
[1747883151350,0.21693744,110630.0,110620.0,0.58870306]
[1747883151784,0.21693744,110630.0,110620.0,0.37321338]
[1747883151911,0.21693744,110630.0,110620.0,0.60074293]
[1747883152105,0.21693736,110630.0,110620.0,0.59170306]